fUSD/lending_fUSD_20251215
["ID","MTS","AMOUNT","RATE_DAILY","PERIOD"]
[398527783,1765791041590,-286.07168692,0.00016986,2]
[398527784,1765791041600,-200.23710833,0.00016986,2]
[398527785,1765791041610,-154.73407225,0.00016986,2]
[398527786,1765791041620,-1000.0,0.00016987,2]
[398527787,1765791041629,-1000.0,0.00016989,2]
[398527788,1765791041639,-1224.0,0.0001699,2]
[398527789,1765791041648,-569.0,0.0001699,2]
[398527790,1765791041658,-150.0,0.0001699,2]
[398527791,1765791041667,-151.0,0.00016991,2]
[398527792,1765791041676,-212.65,0.00016995,2]
[398527793,1765791041685,-1000.0,0.00016996,2]
[398527794,1765791041695,-151.0,0.00016997,2]
[398527795,1765791041705,-949.11,0.00016997,2]
[398527796,1765791041715,-589.0,0.00016997,2]
[398527797,1765791041725,-1261.0,0.00016997,2]
[398527798,1765791041735,-1196.0,0.00016997,2]
[398527799,1765791041746,-911.0,0.00016997,2]
[398527800,1765791041755,-3451.0,0.00016997,2]
[398527801,1765791041767,-2426.0,0.00016997,2]
[398527802,1765791041777,-4798.0,0.00016997,2]
[398527803,1765791041786,-38149.8158585,0.00016998,2]
[398527804,1765791041798,-6059.6009006,0.00016998,2]
[398527805,1765791041809,-62635.8074833,0.00016998,2]
[398527806,1765791041819,-83424.9741771,0.00016998,2]
[398527807,1765791041829,-1000.0,0.00016998,2]
[398527808,1765791041839,-236730.4377748,0.00016998,2]
[398527809,1765791041848,-11253.4754001,0.00016998,2]
[398527810,1765791041859,-856.64478728,0.00016999,5]
[398527811,1765791041868,-2000.0,0.00016999,2]
[398527812,1765791041877,-500.0,0.00016999,2]
[398527813,1765791041888,-500.0,0.00016999,2]
[398527814,1765791041897,-500.0,0.00016999,2]
[398527815,1765791041908,-500.0,0.00016999,2]
[398527816,1765791041918,-11450.89463985,0.00016999,2]
[398527817,1765791041927,-272.84521117,0.00016999,2]
[398527818,1765791041939,-414.65148789,0.00016999,2]
[398527819,1765791041948,-150.0,0.00016999,2]
[398527820,1765791041957,-300.0,0.00016999,2]
[398527821,1765791041966,-300.0,0.00016999,2]
[398527822,1765791041976,-666.0,0.00016999,2]
[398527823,1765791041985,-949.11,0.00016999,2]
[398527824,1765791041994,-949.11,0.00016999,2]
[398527825,1765791042003,-949.11,0.00016999,2]
[398527826,1765791042012,-949.11,0.00016999,2]
[398527827,1765791042022,-949.11,0.00016999,2]
[398527828,1765791042031,-949.11,0.00016999,2]
[398527829,1765791042040,-949.11,0.00016999,2]
[398527830,1765791042050,-949.11,0.00016999,2]
[398527831,1765791042060,-949.11,0.00016999,2]
[398527832,1765791042069,-949.11,0.00016999,2]
[398527833,1765791042078,-949.11,0.00016999,2]
[398527834,1765791042088,-949.11,0.00016999,2]
[398527835,1765791042098,-949.11,0.00016999,2]
[398527836,1765791042109,-949.11,0.00016999,2]
[398527837,1765791042118,-949.11,0.00016999,2]
[398527838,1765791042127,-949.11,0.00016999,2]
[398527839,1765791042137,-949.11,0.00016999,2]
[398527840,1765791042147,-949.11,0.00016999,2]
[398527841,1765791042156,-949.11,0.00016999,2]
[398527842,1765791042165,-949.11,0.00016999,2]
[398527843,1765791042175,-949.17477574,0.00016999,2]
[398527844,1765791042184,-5155126.51220383,0.00017,2]
[398527846,1765791042547,-458.87313864,0.00016305,2]
[398527847,1765791042558,-41.12686136,0.00016305,2]
[398527848,1765791042567,-408.31313864,0.00016442,2]
[398527853,1765791045627,-91.68686136,0.00016442,2]
[398527854,1765791045637,-500.0,0.00016579,2]
[398527855,1765791045646,-500.0,0.00016716,2]
[398527856,1765791045656,-500.0,0.00016853,2]
[398527857,1765791045667,-500.0,0.0001699,2]
[398527858,1765791045676,-1211000.72848501,0.00017,2]
[398527859,1765791045686,-1407695.819748,0.00017,2]
[398527860,1765791045696,-151.0,0.00017,2]
[398527861,1765791045705,-151.0,0.00017,2]
[398527862,1765791045715,-2293.0072429,0.00017,2]
[398527863,1765791045724,-41881.3747543,0.00017,2]
[398527864,1765791045734,-2000.0,0.00017,2]
[398527865,1765791045744,-250.0,0.00017,2]
[398527866,1765791045754,-1146.03,0.00017,2]
[398527867,1765791045763,-250.0,0.00017,2]
[398527868,1765791045772,-250.0,0.00017,2]
[398527869,1765791045782,-250.0,0.00017,2]
[398527870,1765791045791,-250.0,0.00017,2]
[398527871,1765791045801,-250.0,0.00017,2]
[398527872,1765791045811,-250.0,0.00017,2]
[398527873,1765791045821,-250.0,0.00017,2]
[398527874,1765791045832,-250.0,0.00017,2]
[398527875,1765791045842,-250.0,0.00017,2]
[398527876,1765791045851,-250.0,0.00017,2]
[398527877,1765791045861,-250.0,0.00017,2]
[398527878,1765791045870,-250.0,0.00017,2]
[398527879,1765791045879,-250.0,0.00017,2]
[398527880,1765791045888,-250.0,0.00017,2]
[398527881,1765791045898,-250.0,0.00017,2]
[398527882,1765791045907,-250.0,0.00017,2]
[398527883,1765791045916,-250.0,0.00017,2]
[398527884,1765791045925,-250.0,0.00017,2]
[398527885,1765791045934,-250.0,0.00017,2]
[398527886,1765791045943,-250.0,0.00017,2]
[398527887,1765791045953,-250.0,0.00017,2]
[398527888,1765791045962,-250.0,0.00017,2]
[398527889,1765791045971,-250.0,0.00017,2]
[398527890,1765791045980,-250.0,0.00017,2]
[398527891,1765791045989,-250.0,0.00017,2]
[398527892,1765791045998,-250.0,0.00017,2]
[398527893,1765791046009,-250.0,0.00017,2]
[398527894,1765791046019,-250.0,0.00017,2]
[398527895,1765791046028,-250.0,0.00017,2]
[398527896,1765791046038,-250.0,0.00017,2]
[398527897,1765791046047,-250.0,0.00017,2]
[398527898,1765791046056,-250.0,0.00017,2]
[398527899,1765791046066,-250.0,0.00017,2]
[398527900,1765791046075,-250.0,0.00017,2]
[398527901,1765791046084,-250.0,0.00017,2]
[398527902,1765791046093,-250.0,0.00017,2]
[398527903,1765791046102,-250.0,0.00017,2]
[398527904,1765791046112,-250.0,0.00017,2]
[398527905,1765791046121,-250.0,0.00017,2]
[398527906,1765791046131,-250.0,0.00017,2]
[398527907,1765791046141,-250.0,0.00017,2]
[398527908,1765791046150,-250.0,0.00017,2]
[398527909,1765791046160,-250.0,0.00017,2]
[398527910,1765791046171,-250.0,0.00017,2]
[398527911,1765791046180,-250.0,0.00017,2]
[398527912,1765791046190,-250.0,0.00017,2]
[398527913,1765791046199,-250.0,0.00017,2]
[398527914,1765791046209,-250.0,0.00017,2]
[398527915,1765791046218,-250.0,0.00017,2]
[398527916,1765791046227,-250.0,0.00017,2]
[398527917,1765791046237,-250.0,0.00017,2]
[398527918,1765791046246,-250.0,0.00017,2]
[398527919,1765791046255,-290.5,0.00017,2]
[398527920,1765791046264,-2552663.76231868,0.00017,2]
[398527921,1765791046279,-7081511.76254293,0.00017,2]
[398527922,1765791047145,-150.09557626,0.000168,2]
[398527923,1765791047155,-266.38442432,0.000169,2]
[398527924,1765791047176,-60.74001013,0.000169,2]
[398527925,1765791047188,-611.0,0.00016997,2]
[398527926,1765791047198,-608.97712026,0.00017,2]
[398527927,1765791047211,-1896.91709701,0.00017,2]
[398527961,1765791208882,998.15354279,0.00016986,25]
[398528009,1765791419390,300.0,0.000225,120]
[398528030,1765791485138,3240.0,0.00015713,2]
[398528042,1765791539094,173.82,0.00012522,2]
[398528043,1765791539290,173.82,0.00015653,2]
[398528129,1765791895589,2500.0,0.00015715,2]
[398528130,1765791944562,150.0,0.00015288,2]
[398528131,1765791944758,150.0,0.00015288,2]
[398528132,1765791944826,150.0,0.00015288,2]
[398528133,1765791949605,150.0,0.00015288,2]
[398528134,1765791953913,154.73407225,0.00015288,2]
[398528135,1765791954040,150.0,0.00015288,2]
[398528136,1765791965599,150.0,0.00015288,2]
[398528137,1765791966843,150.0,0.00015288,2]
[398528188,1765792102312,1000.0,0.00015578,2]
[398528308,1765792231815,-625.6194234,0.00015808,2]
[398528309,1765792231869,-574.3805766,0.00015808,2]
[398528310,1765792231879,-300.0,0.00015808,2]
[398528311,1765792231889,-4.56131067,0.00015808,2]
[398528312,1765792231899,-295.43868933,0.00015808,2]
[398528313,1765792231909,-1200.0,0.00015808,2]
[398528314,1765792231918,-719.94609701,0.00015809,2]
[398528315,1765792231934,-535.97580641,0.00015809,2]
[398528316,1765792231945,-384.59809658,0.00015809,2]
[398528317,1765792231955,-311.5139078,0.00015809,2]
[398528318,1765792231966,-708.15129787,0.00015809,2]
[398528319,1765792231977,-580.33479433,0.00015809,2]
[398528320,1765792231987,-999.0,0.00015809,3]
[398528321,1765792231996,-256.25393423,0.00015809,2]
[398528322,1765792232005,-2208.32080784,0.00015935,2]
[398528323,1765792232016,-821.9387104,0.00015935,2]
[398528324,1765792232028,-955.4655682,0.00015935,2]
[398528326,1765792232042,-13.34491356,0.00015935,2]
[398528327,1765792232051,-150.0,0.00016137,2]
[398528328,1765792232060,-150.0,0.00016137,2]
[398528329,1765792232070,-200.0,0.00016149,2]
[398528330,1765792232079,-207.4,0.00016149,2]
[398528331,1765792232087,-215.0738,0.00016149,2]
[398528332,1765792232096,-223.0315306,0.00016149,2]
[398528334,1765792232106,-231.28369723,0.00016149,2]
[398528336,1765792232115,-239.84119403,0.00016149,2]
[398528338,1765792232124,-248.71531821,0.00016149,2]
[398528340,1765792232134,-257.91778498,0.00016149,2]
[398528341,1765792232143,-578.20924308,0.00016149,2]
[398528342,1765792232153,-339.0,0.0001633,2]
[398528343,1765792232163,-1502.0,0.00016335,2]
[398528345,1765792232173,-267.46074303,0.00016335,2]
[398528347,1765792232190,-9211.34798985,0.00016335,2]
[398528349,1765792232204,-9000.0,0.00016335,2]
[398528350,1765792232213,-153.01637236,0.00016335,2]
[398528351,1765792232223,-668.65185757,0.00016335,2]
[398528352,1765792232232,-103.62997918,0.00016335,2]
[398528353,1765792232244,-196.37002082,0.00016335,2]
[398528354,1765792232253,-1000.0,0.00016344,2]
[398528355,1765792232263,-339.0,0.00016345,2]
[398528356,1765792232272,-9999.99,0.00016345,2]
[398528357,1765792232282,-155.94,0.00016358,2]
[398528358,1765792232291,-6439.66,0.00016438,2]
[398528359,1765792232300,-168.0,0.00016445,2]
[398528360,1765792232310,-1155.9613,0.00016461,2]
[398528361,1765792232319,-704.07,0.000165,2]
[398528362,1765792232328,-150.0,0.000165,2]
[398528363,1765792232338,-356.52,0.000165,2]
[398528364,1765792232347,-178.26,0.000165,2]
[398528366,1765792232357,-1106.44,0.000165,2]
[398528367,1765792232367,-172.7,0.000165,2]
[398528368,1765792232376,-1405.4,0.00016559,2]
[398528369,1765792232386,-243.70128394,0.0001656,2]
[398528370,1765792232395,-217.79338098,0.0001656,2]
[398528371,1765792232405,-500.0,0.0001656,2]
[398528372,1765792232414,-217.68092131,0.0001656,2]
[398528373,1765792232424,-1000.0,0.00016561,2]
[398528374,1765792232433,-281.4445,0.00016561,2]
[398528375,1765792232443,-2341.2151,0.00016561,2]
[398528376,1765792232452,-21628.49244018,0.00016561,2]
[398528378,1765792237996,-186.94156498,0.00016558,2]
[398528379,1765792238007,-500.0,0.00016558,2]
[398528380,1765792238016,-210.8665066,0.00016558,2]
[398528381,1765792238025,-500.0,0.00016558,2]
[398528382,1765792238035,-500.0,0.00016558,2]
[398528383,1765792238045,-500.0,0.00016558,2]
[398528384,1765792238054,-500.0,0.00016558,2]
[398528385,1765792238064,-500.0,0.00016558,2]
[398528386,1765792238074,-500.0,0.00016558,2]
[398528387,1765792238084,-500.0,0.00016558,2]
[398528388,1765792238094,-500.0,0.00016558,2]
[398528389,1765792238104,-500.0,0.00016558,2]
[398528390,1765792238114,-500.0,0.00016558,2]
[398528391,1765792238123,-500.0,0.00016558,2]
[398528392,1765792238133,-500.0,0.00016558,2]
[398528393,1765792238143,-500.0,0.00016558,2]
[398528394,1765792238153,-235.46155366,0.00016558,2]
[398528396,1765792238163,-500.0,0.00016558,2]
[398528398,1765792238173,-500.0,0.00016558,2]
[398528399,1765792238189,-500.0,0.00016558,2]
[398528400,1765792238209,-500.0,0.00016558,2]
[398528401,1765792238228,-500.0,0.00016558,2]
[398528402,1765792238249,-411.72160187,0.00016558,2]
[398528404,1765792238270,-500.0,0.00016558,2]
[398528406,1765792238292,-500.0,0.00016558,2]
[398528408,1765792238314,-500.0,0.00016558,2]
[398528410,1765792238330,-500.0,0.00016558,2]
[398528411,1765792238339,-500.0,0.00016558,2]
[398528412,1765792238349,-57193.78785982,0.00016561,2]
[398528413,1765792238358,-6682.1636,0.00016561,2]
[398528414,1765792238369,-235.7645,0.00016561,2]
[398528415,1765792238379,-2500.0,0.00016562,2]
[398528416,1765792238389,-6766.0798,0.00016562,2]
[398528417,1765792238399,-188.97542557,0.00016571,2]
[398528418,1765792238409,-168.0,0.00016591,2]
[398528419,1765792238419,-250.0,0.00016632,2]
[398528420,1765792238429,-1000.0,0.00016642,2]
[398528421,1765792238440,-500.0,0.00016642,2]
[398528422,1765792238451,-707.48627362,0.00016642,2]
[398528423,1765792238460,-151.0,0.00016642,2]
[398528424,1765792238470,-500.0,0.00016642,2]
[398528425,1765792238479,-500.0,0.00016642,2]
[398528426,1765792238488,-1000.0,0.00016642,2]
[398528427,1765792238497,-500.0,0.00016642,2]
[398528428,1765792238507,-500.0,0.00016642,2]
[398528429,1765792238516,-544.47749946,0.00016642,2]
[398528430,1765792238527,-200.0,0.00016642,2]
[398528431,1765792238537,-201.56881359,0.00016642,2]
[398528432,1765792238547,-500.0,0.00016642,2]
[398528433,1765792238556,-500.0,0.00016642,2]
[398528434,1765792238566,-500.0,0.00016642,2]
[398528435,1765792238575,-500.0,0.00016642,2]
[398528436,1765792238584,-500.0,0.00016642,2]
[398528437,1765792238594,-250.0,0.00016642,2]
[398528438,1765792238603,-536.94265308,0.00016642,2]
[398528439,1765792238612,-151.0,0.00016642,2]
[398528440,1765792238622,-160.0,0.00016642,2]
[398528441,1765792238631,-1000.0,0.00016642,2]
[398528442,1765792238640,-553.64373807,0.00016642,2]
[398528443,1765792238650,-250.0,0.00016642,2]
[398528444,1765792238659,-1000.0,0.00016642,2]
[398528445,1765792238669,-184.19562539,0.00016642,2]
[398528446,1765792238678,-500.0,0.00016642,2]
[398528447,1765792238687,-151.0,0.00016642,2]
[398528448,1765792238696,-151.0,0.00016642,2]
[398528449,1765792238706,-500.0,0.00016642,2]
[398528450,1765792238715,-151.0,0.00016642,2]
[398528451,1765792238724,-151.0,0.00016642,2]
[398528452,1765792238733,-151.0,0.00016642,2]
[398528453,1765792238743,-151.0,0.00016642,2]
[398528454,1765792238752,-151.0,0.00016642,2]
[398528455,1765792238761,-151.0,0.00016642,2]
[398528456,1765792238771,-151.0,0.00016642,2]
[398528457,1765792238780,-151.0,0.00016642,2]
[398528458,1765792238789,-151.0,0.00016642,2]
[398528459,1765792238798,-500.0,0.00016642,2]
[398528460,1765792238807,-151.0,0.00016642,2]
[398528461,1765792238817,-151.0,0.00016642,2]
[398528462,1765792238826,-500.0,0.00016642,2]
[398528463,1765792238835,-151.0,0.00016642,2]
[398528464,1765792238844,-151.0,0.00016642,2]
[398528465,1765792238854,-151.0,0.00016642,2]
[398528466,1765792238864,-151.0,0.00016642,2]
[398528467,1765792238873,-151.0,0.00016642,2]
[398528468,1765792238883,-151.0,0.00016642,2]
[398528469,1765792238893,-151.0,0.00016642,2]
[398528470,1765792238902,-151.0,0.00016642,2]
[398528471,1765792238911,-151.0,0.00016642,2]
[398528472,1765792238920,-231.76701204,0.00016642,2]
[398528473,1765792238929,-200.0,0.00016642,2]
[398528474,1765792238940,-339.0,0.00016653,2]
[398528475,1765792238949,-1545.58978694,0.0001666,2]
[398528476,1765792238958,-856.64478728,0.00016661,5]
[398528477,1765792238967,-500.0,0.00016661,2]
[398528478,1765792238976,-500.0,0.00016661,2]
[398528479,1765792238985,-515.43415012,0.00016661,2]
[398528480,1765792238995,-949.11,0.00016661,2]
[398528481,1765792239005,-949.11,0.00016661,2]
[398528482,1765792239014,-949.11,0.00016661,2]
[398528483,1765792239024,-949.11,0.00016661,2]
[398528484,1765792239035,-600.0,0.00016662,2]
[398528485,1765792239044,-1000.0,0.00016671,2]
[398528486,1765792239054,-168.0,0.00016681,2]
[398528487,1765792239064,-3411.52155093,0.00016726,2]
[398528488,1765792239073,-300.0,0.00016729,2]
[398528489,1765792239082,-1000.0,0.00016731,2]
[398528490,1765792239091,-1174.13730854,0.00016732,2]
[398528491,1765792239100,-1000.0,0.00016733,2]
[398528492,1765792239109,-1000.0,0.00016734,2]
[398528493,1765792239118,-150.0,0.00016735,2]
[398528494,1765792239127,-188.97542557,0.00016736,2]
[398528495,1765792239136,-1000.0,0.00016736,2]
[398528496,1765792239146,-168.0,0.00016741,2]
[398528497,1765792239155,-359.16036174,0.00016743,2]
[398528498,1765792239164,-150.0,0.00016743,2]
[398528499,1765792239173,-168.0,0.00016745,2]
[398528500,1765792239183,-1000.0,0.00016749,2]
[398528501,1765792239192,-1000.0,0.0001675,2]
[398528502,1765792239201,-1000.0,0.0001676,2]
[398528503,1765792239211,-3411.52155093,0.0001676,2]
[398528504,1765792239220,-1000.0,0.00016761,2]
[398528505,1765792239230,-150.0,0.00016763,2]
[398528506,1765792239240,-151.48227111,0.00016765,2]
[398528507,1765792239249,-1000.0,0.00016765,2]
[398528508,1765792239258,-1000.0,0.00016773,2]
[398528509,1765792239267,-1000.0,0.00016781,2]
[398528510,1765792239275,-1000.0,0.00016787,2]
[398528511,1765792239284,-1000.0,0.00016788,2]
[398528512,1765792239293,-3411.52155093,0.00016795,2]
[398528513,1765792239303,-1000.0,0.00016799,2]
[398528514,1765792239312,-150.0,0.00016799,2]
[398528515,1765792239321,-553.28,0.000168,2]
[398528516,1765792239330,-1000.0,0.00016819,2]
[398528517,1765792239339,-4003.74941,0.0001683,2]
[398528518,1765792239349,-3411.52155093,0.0001683,2]
[398528519,1765792239357,-1405.4,0.00016833,2]
[398528520,1765792239367,-1000.0,0.00016837,2]
[398528521,1765792239376,-1000.0,0.00016837,2]
[398528522,1765792239385,-1000.0,0.00016841,2]
[398528523,1765792239395,-1000.0,0.00016854,2]
[398528524,1765792239404,-1000.0,0.00016858,2]
[398528525,1765792239414,-1000.0,0.00016858,2]
[398528526,1765792239422,-1000.0,0.00016863,2]
[398528527,1765792239431,-200.0,0.00016864,2]
[398528528,1765792239441,-3411.52155093,0.00016865,2]
[398528529,1765792239451,-168.0,0.00016871,2]
[398528530,1765792239460,-150.0,0.00016878,2]
[398528531,1765792239470,-1000.0,0.0001688,2]
[398528532,1765792239480,-1502.0,0.00016883,2]
[398528533,1765792239490,-1000.0,0.00016885,2]
[398528534,1765792239499,-300.0,0.00016885,2]
[398528535,1765792239508,-1000.0,0.00016887,2]
[398528536,1765792239519,-1000.0,0.00016888,2]
[398528537,1765792239528,-1000.0,0.00016891,2]
[398528538,1765792239538,-1000.0,0.00016892,2]
[398528539,1765792239547,-1000.0,0.00016893,2]
[398528540,1765792239556,-500.0,0.00016899,2]
[398528541,1765792239566,-508.56984637,0.00016899,2]
[398528542,1765792239576,-311.87026613,0.00016899,2]
[398528543,1765792239585,-607.60669372,0.00016899,2]
[398528544,1765792239595,-500.0,0.00016899,2]
[398528545,1765792239604,-507.13598711,0.00016899,2]
[398528546,1765792239614,-500.0,0.00016899,2]
[398528547,1765792239624,-500.0,0.00016899,2]
[398528548,1765792239633,-612.84524907,0.00016899,2]
[398528549,1765792239642,-500.0,0.00016899,2]
[398528550,1765792239652,-500.0,0.00016899,2]
[398528551,1765792239662,-500.0,0.00016899,2]
[398528552,1765792239671,-500.0,0.00016899,2]
[398528553,1765792239681,-500.0,0.00016899,2]
[398528554,1765792239692,-500.0,0.00016899,2]
[398528555,1765792239702,-500.0,0.00016899,2]
[398528556,1765792239711,-29866.7464,0.000169,2]
[398528557,1765792239720,-3411.52155093,0.000169,2]
[398528558,1765792239730,-10000.0,0.000169,2]
[398528559,1765792239738,-1871.99252972,0.000169,2]
[398528560,1765792239747,-1585.34367836,0.000169,2]
[398528561,1765792239756,-561.94099531,0.000169,2]
[398528562,1765792239765,-188.97542557,0.000169,2]
[398528563,1765792239775,-5122.0,0.000169,2]
[398528564,1765792239784,-1000.0,0.00016903,2]
[398528565,1765792239794,-150.0,0.00016908,2]
[398528566,1765792239803,-150.0,0.0001691,2]
[398528567,1765792239813,-178.50581784,0.0001692,2]
[398528568,1765792239822,-1921.727,0.0001692,2]
[398528569,1765792239831,-481.25235646,0.00016925,2]
[398528570,1765792239840,-1000.0,0.00016931,2]
[398528571,1765792239850,-168.0,0.00016936,2]
[398528572,1765792239859,-1000.0,0.0001694,2]
[398528573,1765792239869,-150.0,0.00016952,2]
[398528574,1765792239879,-1000.0,0.00016953,2]
[398528576,1765792239888,-2135.0,0.00016959,2]
[398528578,1765792239897,-150.0,0.00016969,2]
[398528580,1765792239907,-1000.0,0.00016971,2]
[398528581,1765792239917,-500.0,0.00016973,2]
[398528582,1765792239929,-500.0,0.00016973,2]
[398528583,1765792239939,-167.01915454,0.00016973,2]
[398528584,1765792239948,-534.13325228,0.00016973,2]
[398528585,1765792239958,-500.0,0.00016973,2]
[398528586,1765792239967,-500.0,0.00016973,2]
[398528587,1765792239977,-500.0,0.00016973,2]
[398528588,1765792239986,-500.0,0.00016973,2]
[398528589,1765792239996,-500.0,0.00016973,2]
[398528590,1765792240007,-500.0,0.00016973,2]
[398528591,1765792240016,-500.0,0.00016973,2]
[398528592,1765792240026,-223.90146234,0.00016973,2]
[398528593,1765792240037,-250.59182654,0.00016973,2]
[398528594,1765792240047,-500.0,0.00016973,2]
[398528595,1765792240057,-500.0,0.00016973,2]
[398528596,1765792240067,-500.0,0.00016973,2]
[398528597,1765792240077,-626.45389736,0.00016973,2]
[398528598,1765792240086,-500.0,0.00016973,2]
[398528599,1765792240095,-500.0,0.00016973,2]
[398528600,1765792240104,-500.0,0.00016973,2]
[398528601,1765792240114,-500.0,0.00016973,2]
[398528602,1765792240123,-500.38142603,0.00016973,2]
[398528603,1765792240134,-500.0,0.00016973,2]
[398528604,1765792240144,-500.0,0.00016973,2]
[398528605,1765792240153,-500.0,0.00016973,2]
[398528606,1765792240163,-500.0,0.00016973,2]
[398528607,1765792240172,-500.0,0.00016973,2]
[398528608,1765792240182,-500.0,0.00016973,2]
[398528609,1765792240195,-500.0,0.00016973,2]
[398528610,1765792240204,-500.0,0.00016973,2]
[398528611,1765792240213,-500.0,0.00016973,2]
[398528612,1765792240222,-535.77849194,0.00016973,2]
[398528613,1765792240233,-500.0,0.00016973,2]
[398528614,1765792240241,-315.21795353,0.00016973,2]
[398528615,1765792240251,-500.0,0.00016973,2]
[398528616,1765792240262,-500.0,0.00016973,2]
[398528617,1765792240272,-151.0,0.00016975,2]
[398528618,1765792240281,-188.37637361,0.00016976,2]
[398528619,1765792240290,-272.84521117,0.00016982,2]
[398528620,1765792240299,-500.0,0.00016982,2]
[398528621,1765792240309,-414.65148789,0.00016982,2]
[398528622,1765792240318,-1500.0,0.00016983,2]
[398528623,1765792240327,-1500.0,0.00016983,2]
[398528624,1765792240336,-1500.0,0.00016983,2]
[398528625,1765792240345,-1500.0,0.00016983,2]
[398528626,1765792240354,-1500.0,0.00016983,2]
[398528627,1765792240363,-1500.0,0.00016983,2]
[398528628,1765792240372,-1500.0,0.00016983,5]
[398528629,1765792240381,-151.0,0.00016983,2]
[398528630,1765792240390,-150.0,0.00016985,2]
[398528631,1765792240399,-500.0,0.00016986,2]
[398528632,1765792240408,-514.64050716,0.00016986,2]
[398528633,1765792240417,-500.0,0.00016986,2]
[398528634,1765792240426,-500.0,0.00016986,2]
[398528635,1765792240435,-500.0,0.00016986,2]
[398528637,1765792240445,-500.0,0.00016986,2]
[398528639,1765792240455,-500.0,0.00016986,2]
[398528641,1765792240463,-520.67260897,0.00016986,2]
[398528643,1765792240473,-500.0,0.00016986,2]
[398528645,1765792240482,-956.34,0.00016986,2]
[398528646,1765792240491,-150.0,0.00016986,2]
[398528647,1765792240500,-286.07168692,0.00016986,2]
[398528648,1765792240509,-200.23710833,0.00016986,2]
[398528649,1765792240518,-150.0,0.00016986,2]
[398528650,1765792240527,-1000.0,0.00016989,2]
[398528651,1765792240536,-152.37400623,0.0001699,2]
[398528652,1765792240545,-1000.0,0.00016991,2]
[398528653,1765792240555,-151.0,0.00016992,2]
[398528654,1765792240564,-500.0,0.00016997,2]
[398528655,1765792240574,-176.26336959,0.00016997,2]
[398528656,1765792240583,-500.0,0.00016997,2]
[398528657,1765792240592,-500.0,0.00016997,2]
[398528658,1765792240601,-500.0,0.00016997,2]
[398528659,1765792240610,-562.18402623,0.00016997,2]
[398528660,1765792240619,-500.0,0.00016997,2]
[398528661,1765792240628,-151.0,0.00016997,2]
[398528662,1765792240637,-3451.0,0.00016999,2]
[398528663,1765792240646,-611.0,0.00016999,2]
[398528664,1765792240655,-1607.0,0.00016999,2]
[398528665,1765792240664,-1324.0,0.00016999,2]
[398528666,1765792240673,-1261.0,0.00016999,2]
[398528667,1765792240682,-589.0,0.00016999,2]
[398528668,1765792240691,-911.0,0.00016999,2]
[398528669,1765792240700,-2426.0,0.00016999,2]
[398528670,1765792240710,-150.0,0.00016999,2]
[398528671,1765792240718,-150.0,0.00016999,2]
[398528672,1765792240727,-4798.0,0.00016999,2]
[398528673,1765792240736,-500.0,0.00016999,2]
[398528674,1765792240745,-513.8374167,0.00016999,2]
[398528675,1765792240754,-500.0,0.00016999,2]
[398528676,1765792240764,-609.67599965,0.00016999,2]